bitfinex/quotes_ETHUSD_20240816
["timestamp","ask_amount","ask_price","bid_price","bid_amount"]
[1723812377663,4.0049326,2578.8,2578.1,7.75744]
[1723812377801,4.0049326,2578.8,2578.1,3.87872]
[1723812377997,3.87793,2578.7,2578.1,3.87872]
[1723812378301,4.35506793,2578.7,2578.1,3.87872]
[1723812378514,0.47713793,2578.7,2578.1,3.87872]
[1723812379097,7.8828226,2578.8,2578.1,3.87872]
[1723812379324,0.1271126,2578.8,2578.4,3.87836]
[1723812379640,0.1271126,2578.8,2578.3,0.07755719]
[1723812379803,0.1271126,2578.8,2578.6,3.87795]
[1723812379998,0.1271126,2578.8,2578.2,6.87861]
[1723812379999,2.5591126,2578.8,2578.2,6.87861]
[1723812380198,2.5591126,2578.8,2578.1,3.0]
[1723812380199,3.87793,2578.7,2578.1,3.0]
[1723812380738,0.1271126,2578.8,2578.3,3.87842]
[1723812380925,0.1271126,2578.8,2578.2,3.87862]
[1723812380926,4.0049826,2578.8,2578.2,3.87862]
[1723812381131,0.1271126,2578.8,2578.3,3.87851]
[1723812381336,0.1271126,2578.8,2578.2,3.87862]
[1723812381337,0.1271126,2578.8,2578.2,3.87855]
[1723812381566,0.1271126,2578.8,2578.3,3.8784]
[1723812381750,0.1271126,2578.8,2578.5,3.87817]
[1723812381935,0.1271126,2578.8,2578.7,3.87792]
[1723812382323,0.1271126,2578.8,2578.4,3.87837]
[1723812382523,0.1271126,2578.8,2578.5,3.0]
[1723812382730,0.1271126,2578.8,2578.7,3.87792]
[1723812382937,0.1271126,2578.8,2578.7,8.831427]
[1723812383154,0.1271126,2578.8,2578.7,1.075587]
[1723812383371,0.1271126,2578.8,2578.5,6.87811]
[1723812383523,0.1271126,2578.8,2578.6,3.87798]
[1723812383868,0.1271126,2578.8,2578.5,6.87811]
[1723812383869,0.1271126,2578.8,2578.7,7.75584]
[1723812384064,0.1271126,2578.8,2578.7,3.87792]
[1723812384227,0.1271126,2578.8,2578.5,6.87812]
[1723812384427,0.1271126,2578.8,2578.5,3.0]
[1723812384669,0.1271126,2578.8,2578.2,6.87855]
[1723812384873,3.87823,2578.5,2577.8,3.87922]
[1723812385074,3.87883,2578.1,2577.5,3.87971]
[1723812385386,3.87883,2578.1,2577.4,3.87976]
[1723812385668,6.20802,2578.3,2577.7,3.87941]
[1723812385828,6.20802,2578.3,2577.7,3.87933]
[1723812386036,6.20802,2578.3,2577.6,3.87956]
[1723812386236,3.87885,2578.1,2577.4,3.87975]
[1723812386435,0.620802,2578.2,2577.5,3.0]
[1723812386632,6.20795,2578.3,2577.7,3.87941]
[1723812386939,10.08657,2578.3,2577.7,3.87941]
[1723812387133,6.20795,2578.3,2577.7,3.87933]
[1723812387331,2.3294,2578.3,2577.8,3.87926]
[1723812387569,2.3294,2578.3,2577.7,7.75866]
[1723812387735,2.3294,2578.3,2577.8,3.87925]
[1723812387930,2.4792,2578.6,2577.9,3.87911]
[1723812388133,0.1271126,2578.8,2577.8,0.775858]
[1723812388347,0.1271126,2578.8,2577.9,0.55]
[1723812388559,0.1271126,2578.8,2577.8,3.87919]
[1723812388760,3.87862,2578.3,2577.7,3.0]
[1723812388983,0.613722,2578.3,2577.9,3.87903]
[1723812389183,2.2586,2578.5,2577.9,3.87903]
[1723812389353,2.2586,2578.5,2577.7,3.87933]
[1723812389354,3.87848,2578.4,2577.7,3.87933]
[1723812389569,3.87848,2578.4,2577.6,3.87951]
[1723812389570,3.87868,2578.2,2577.6,3.87951]
[1723812389897,3.87868,2578.2,2577.7,6.87939]
[1723812390101,2.2586,2578.5,2577.7,7.955169]
[1723812390310,6.13684,2578.5,2577.7,6.87934]
[1723812390597,6.18938,2577.8,2577.1,3.88024]
[1723812390800,0.618938,2577.7,2577.1,3.88024]
[1723812391003,2.31,2578.6,2578.0,3.87897]
[1723812391263,0.1271126,2578.8,2577.7,0.58766689]
[1723812391420,0.1271126,2578.8,2577.3,2.368]
[1723812391421,2.3963,2578.7,2577.3,2.368]
[1723812391559,3.87838,2578.4,2577.6,3.87952]
[1723812391760,0.25234126,2578.6,2577.9,3.87901]
[1723812392018,2.3963,2578.7,2577.9,4.266911]
[1723812392163,2.3963,2578.7,2577.9,3.87901]
[1723812392365,2.3963,2578.7,2578.1,3.87873]
[1723812392742,2.3963,2578.7,2577.6,3.87947]
[1723812392743,3.87861,2578.3,2577.6,3.87947]
[1723812392915,2.64864126,2578.7,2577.7,3.87929]
[1723812393221,0.1271126,2578.8,2578.5,3.8782]
[1723812393503,0.1271126,2578.8,2578.6,3.87796]
[1723812393691,0.1271126,2578.8,2578.5,3.8782]
[1723812394007,0.1271126,2578.8,2578.7,3.87792]
[1723812394199,0.1271126,2578.8,2578.7,7.75584]
[1723812394407,0.1271126,2578.8,2578.5,3.87812]
[1723812394562,0.1271126,2578.8,2578.1,6.87875]
[1723812394771,6.4502326,2578.8,2578.1,3.0]
[1723812395007,3.87851,2578.4,2577.7,3.87934]
[1723812395447,3.87867,2578.2,2577.6,3.87954]
[1723812395565,3.87882,2578.1,2577.4,4.25386567]
[1723812395765,0.32174359,2578.6,2577.8,3.87917]
[1723812395766,6.32275,2578.5,2577.8,3.87917]
[1723812395992,6.32275,2578.5,2577.6,3.87944]
[1723812395993,3.87855,2578.3,2577.6,3.87944]
[1723812396301,0.12816892,2578.2,2577.6,3.87944]
[1723812396480,3.87917,2577.9,2577.4,3.87975]
[1723812396676,3.87917,2577.9,2577.2,3.88007]
[1723812396677,2.4121,2577.8,2577.2,3.88007]
[1723812396975,2.4121,2577.8,2577.4,3.87977]
[1723812397162,0.12818322,2577.7,2577.4,7.75956]
[1723812397363,2.4121,2577.8,2577.4,3.87977]
[1723812397578,3.87887,2578.1,2576.7,2.3712]
[1723812397579,0.1281865,2577.7,2577.5,3.87962]
[1723812397786,6.29086,2578.2,2576.9,0.625193]
[1723812398099,3.32174359,2578.6,2576.8,3.8807]
[1723812398100,0.12818309,2578.1,2577.2,2.3712]
[1723812398264,2.4121,2578.7,2577.4,4.26957]
[1723812398466,0.12813863,2578.6,2578.1,7.75744]
[1723812398697,0.12813863,2578.5,2578.2,3.87866]
[1723812398897,2.4121,2578.7,2578.2,3.87866]
[1723812399103,2.4121,2578.7,2577.5,3.0]
[1723812399104,0.12813852,2578.6,2578.3,3.87848]
[1723812399328,0.1271126,2578.8,2578.7,3.87792]
[1723812399621,0.1271126,2578.8,2578.7,4.653511]
[1723812399771,0.1271126,2578.8,2578.7,7.75584]
[1723812399974,0.1271126,2578.8,2578.7,3.87792]
[1723812400176,0.25522851,2578.8,2578.1,3.0]
[1723812400377,0.1271126,2578.8,2578.5,3.87821]
[1723812400578,0.1271126,2578.8,2578.6,3.87797]
[1723812400816,0.1271126,2578.8,2578.1,0.76546544]
[1723812400817,0.1271126,2578.8,2578.7,7.75584]
[1723812401637,0.1271126,2578.8,2578.7,3.87792]
[1723812401772,0.1271126,2578.8,2578.3,3.0]
[1723812401976,0.1271126,2578.8,2578.7,7.75584]
[1723812402913,0.1271126,2578.8,2578.7,3.87792]
[1723812403481,0.1271126,2578.8,2578.7,7.75584]
[1723812403706,0.1271126,2578.8,2578.7,3.87792]
[1723812404215,0.1271126,2578.8,2578.7,7.75584]
[1723812404515,0.1271126,2578.8,2578.7,3.87792]
[1723812404718,0.1271126,2578.8,2578.7,8.143632]
[1723812405101,0.1271126,2578.8,2578.7,4.265712]
[1723812405305,0.1271126,2578.8,2578.7,8.143632]
[1723812405509,0.1271126,2578.8,2578.7,8.693632]
[1723812406096,0.1271126,2578.8,2578.7,12.571552]
[1723812406405,0.1271126,2578.8,2578.7,17.853752]
[1723812406606,2.3584,2579.9,2579.4,3.87686]
[1723812406793,2.3584,2579.9,2579.6,3.87653]
[1723812406996,2.3748,2580.2,2579.6,3.87653]
[1723812407210,0.12806938,2580.1,2579.6,3.87653]
[1723812407415,0.12806938,2580.0,2579.6,3.87646]
[1723812407611,6.25048,2580.2,2579.6,3.87646]
[1723812407828,0.12807559,2580.1,2579.2,3.87706]
[1723812407990,3.87633,2579.8,2579.0,6.87735]
[1723812408311,0.12807559,2579.7,2579.4,3.87684]
[1723812408510,3.87601,2580.0,2579.2,3.87712]
[1723812408824,4.00428208,2579.9,2579.2,3.87707]
[1723812409121,0.12808098,2579.8,2579.2,3.87705]
[1723812409321,3.87601,2580.0,2579.3,0.387705]
[1723812409628,3.87646,2579.7,2579.0,6.87739]
[1723812409834,3.87636,2579.8,2579.1,6.87731]
[1723812410040,3.87604,2580.0,2579.2,3.87715]
[1723812410344,4.501124,2580.0,2579.2,3.87703]
[1723812410638,3.87582,2580.1,2579.4,3.87687]
[1723812410999,10.12632,2580.2,2579.4,4.652269]
[1723812411188,4.00397755,2580.1,2579.4,3.87687]
[1723812411388,0.12807755,2580.0,2579.6,3.87656]
[1723812411622,2.3748,2580.2,2579.4,3.87677]
[1723812411623,2.3748,2580.2,2579.4,3.87676]
[1723812411824,0.12807486,2580.1,2579.6,3.87656]
[1723812412033,2.3748,2580.2,2579.6,3.87647]
[1723812412395,6.25047,2580.2,2579.6,3.87646]
[1723812412793,6.25047,2580.2,2579.6,3.87644]
[1723812413050,2.3748,2580.2,2579.7,3.87641]
[1723812413195,2.3748,2580.2,2579.6,3.87644]
[1723812413603,6.25047,2580.2,2579.6,3.87644]
[1723812413789,2.3748,2580.2,2579.6,3.87644]
[1723812414025,2.3748,2580.2,2579.6,4.264084]
[1723812414328,2.3748,2580.2,2579.6,8.140554]
[1723812414533,2.3748,2580.2,2579.7,3.8764]
[1723812415035,2.3748,2580.2,2579.8,3.87625]
[1723812415194,2.3748,2580.2,2579.6,4.264084]
[1723812415395,2.3748,2580.2,2579.7,3.8764]
[1723812415596,2.3748,2580.2,2579.1,3.0]
[1723812415597,2.3748,2580.2,2578.8,3.87775]
[1723812415804,5.414,2580.7,2578.9,3.87761]
[1723812415805,3.87665,2579.6,2578.9,3.87761]
[1723812416209,3.87665,2579.6,2579.0,3.87746]
[1723812416657,3.87711,2579.3,2578.6,7.75596]
[1723812416940,6.22951,2579.3,2578.6,7.7559]
[1723812417124,2.3524,2579.3,2578.8,3.87777]
[1723812417358,2.3524,2579.3,2578.8,3.87768]
[1723812417492,3.87679,2579.5,2578.8,3.87766]
[1723812417698,3.87679,2579.5,2578.8,3.87765]
[1723812418100,3.87679,2579.5,2578.9,3.0]
[1723812418101,0.622919,2579.5,2578.9,3.0]
[1723812418432,0.622919,2579.5,2577.7,2.4848]
[1723812418433,6.29244,2578.9,2577.7,2.4848]
[1723812418599,2.4148,2578.9,2578.4,3.87833]
[1723812418805,3.0,2579.7,2578.1,3.87881]
[1723812418806,2.4954,2579.2,2578.1,3.87881]
[1723812419120,3.87741,2579.1,2578.3,3.87844]
[1723812419354,3.87741,2579.1,2578.4,3.87836]
[1723812419497,3.87741,2579.1,2578.3,7.75686]
[1723812419498,3.87749,2579.0,2578.3,7.75686]
[1723812419692,3.87749,2579.0,2578.3,4.654106]
[1723812419693,3.87747,2579.0,2578.3,4.654106]
[1723812419897,3.132649,2579.2,2578.1,3.87874]
[1723812419898,3.87777,2578.8,2578.1,3.87874]
[1723812420212,3.87794,2578.7,2577.9,3.87905]
[1723812420492,3.8771,2579.3,2577.4,3.87984]
[1723812420493,3.87853,2578.3,2577.5,3.87968]
[1723812420755,3.87853,2578.3,2577.5,3.87957]
[1723812421049,3.87853,2578.3,2576.8,0.58766689]
[1723812421050,2.3015,2577.9,2577.3,3.87992]
[1723812421196,2.3015,2577.9,2577.4,3.87983]
[1723812421401,3.87929,2577.8,2577.1,7.76047]
[1723812421758,2.3015,2577.9,2576.9,0.29155669]
[1723812422056,3.8795,2577.7,2577.1,3.88022]
[1723812422196,6.18069,2577.9,2576.4,2.88394847]
[1723812422197,2.3015,2577.9,2576.4,2.88394847]
[1723812422574,3.88046,2577.1,2576.3,3.88141]
[1723812422696,6.265,2577.2,2576.7,3.8808]
[1723812422697,2.3848,2577.2,2576.7,3.8808]
[1723812422908,2.4625,2578.0,2577.4,3.87976]
[1723812423109,2.4625,2578.0,2577.2,3.88006]
[1723812423312,2.4625,2578.0,2577.0,3.88034]
[1723812423533,2.4625,2578.0,2577.3,3.88002]
[1723812423735,2.3075,2578.3,2577.3,3.87996]
[1723812423896,3.87907,2578.0,2577.4,3.0]
[1723812424126,3.87902,2578.0,2577.1,3.88022]
[1723812424465,3.87924,2577.9,2577.2,3.88016]
[1723812424678,3.87924,2577.9,2577.1,3.88022]
[1723812424826,3.87957,2577.7,2576.9,3.88052]
[1723812425027,3.87982,2577.5,2577.0,3.0]
[1723812425230,2.4468,2577.4,2576.5,3.88113]
[1723812425432,6.32677,2577.4,2576.7,3.88082]
[1723812425765,3.88044,2577.1,2576.3,3.88143]
[1723812425966,2.4468,2577.4,2576.1,8.389286]
[1723812425967,3.88063,2576.9,2576.1,8.389286]
[1723812426129,3.88041,2577.1,2576.4,3.88125]
[1723812426332,3.88028,2577.2,2576.5,0.388125]
[1723812426532,3.88028,2577.2,2576.6,3.88097]
[1723812426754,6.32673,2577.4,2576.6,3.88097]
[1723812427091,2.4468,2577.4,2576.3,2.474]
[1723812427293,6.35062,2577.8,2577.0,3.88038]
[1723812427476,6.35062,2577.8,2576.8,3.88071]
[1723812427477,3.87984,2577.5,2576.8,3.88071]
[1723812427660,3.87998,2577.4,2576.7,3.88085]
[1723812427994,3.87998,2577.4,2576.5,6.88122]
[1723812427995,3.88027,2577.2,2576.5,6.88122]
[1723812428196,2.3781,2577.3,2576.7,3.88084]
[1723812428581,3.88022,2577.2,2576.6,3.88105]
[1723812428763,3.88033,2577.1,2576.5,3.0]
[1723812428965,3.88048,2577.0,2576.5,3.0]
[1723812429352,4.89404,2577.2,2576.6,3.88103]
[1723812429649,3.88022,2577.2,2576.5,6.88122]
[1723812429849,3.88022,2577.2,2576.5,10.76235]
[1723812430054,2.3781,2577.3,2576.5,3.0]
[1723812430263,0.23781,2577.2,2576.4,3.0]
[1723812430489,3.88073,2576.9,2576.3,3.88147]
[1723812430791,3.88043,2577.1,2576.4,3.88136]
[1723812431006,6.25819,2577.3,2576.6,3.88107]
[1723812431007,2.3781,2577.3,2576.6,3.88107]
[1723812431291,2.326,2577.6,2577.0,3.88037]
[1723812431500,3.87919,2577.9,2576.6,2.77972357]
[1723812431805,3.87889,2578.1,2576.6,2.77972357]
[1723812431806,2.326,2578.0,2577.4,3.87974]
[1723812431954,2.326,2578.0,2577.5,0.387974]
[1723812432291,2.326,2578.0,2577.2,6.88005]
[1723812432292,3.87915,2577.9,2577.2,6.88005]
[1723812432796,3.87928,2577.8,2577.2,6.88005]
[1723812433092,2.326,2578.0,2577.4,3.87987]
[1723812433295,9.29196,2578.7,2577.3,0.688005]
[1723812433296,3.87857,2578.3,2577.3,0.688005]
[1723812433495,3.87857,2578.3,2577.6,3.87948]
[1723812433697,3.87857,2578.3,2577.7,3.87941]
[1723812434033,2.4155,2578.4,2577.8,3.87918]
[1723812434232,2.4155,2578.4,2577.2,5.2551]
[1723812434233,3.87878,2578.2,2577.4,3.87978]
[1723812434511,6.29394,2578.4,2577.6,3.87948]
[1723812434725,6.29394,2578.4,2577.8,3.87918]
[1723812434882,2.4155,2578.4,2577.8,3.87918]
[1723812435063,6.29396,2578.4,2577.8,3.87915]
[1723812435268,3.87846,2578.4,2577.8,3.87915]
[1723812435678,2.3809,2578.8,2577.6,3.8795]
[1723812435899,2.4235,2578.6,2577.6,3.8795]
[1723812436212,3.87846,2578.4,2577.8,3.87924]
[1723812436367,3.87846,2578.4,2577.6,7.75895]
[1723812436571,2.4235,2578.6,2577.3,4.17995]
[1723812436766,2.4235,2578.0,2577.6,3.87957]
[1723812436977,7.75723,2578.3,2577.7,0.387957]
[1723812436978,3.8786,2578.3,2577.7,0.387957]
[1723812437243,2.4235,2578.3,2577.8,3.87918]
[1723812437411,6.30149,2578.7,2578.0,3.87884]
[1723812437573,3.87823,2578.5,2577.8,3.87914]
[1723812437768,6.30149,2578.7,2577.8,4.267104]
[1723812437966,2.4235,2578.7,2577.8,0.387914]
[1723812438196,6.14471,2579.0,2578.2,3.87862]
[1723812438413,6.14471,2579.0,2578.3,0.387862]
[1723812438586,3.87762,2578.9,2578.3,3.87849]
[1723812438793,2.2672,2579.0,2578.5,3.87812]
[1723812439211,2.2672,2579.0,2578.6,3.87796]
[1723812439581,2.2672,2579.0,2578.2,3.0]
[1723812439582,2.3803,2579.4,2578.3,3.87848]
[1723812439783,2.3803,2579.4,2578.4,6.87828]
[1723812439784,3.87741,2579.1,2578.4,6.87828]
[1723812439982,7.75422,2579.3,2578.6,3.87798]
[1723812440209,3.8771,2579.3,2578.6,7.75595]
[1723812440382,4.890519,2579.3,2578.7,3.87789]
[1723812440580,2.3803,2579.4,2578.8,3.87775]
[1723812440807,3.8772,2579.2,2578.5,3.87812]
[1723812441013,3.8772,2579.2,2578.3,0.3]
[1723812441014,3.8772,2579.2,2578.4,3.87824]
[1723812441331,3.8772,2579.2,2578.6,3.87797]
[1723812441838,4.914447,2579.2,2578.4,3.87829]
[1723812442023,3.87749,2579.0,2578.5,3.0]
[1723812442355,8.791717,2579.2,2578.6,3.87798]
[1723812442517,3.8772,2579.2,2578.6,7.75595]
[1723812442837,3.8772,2579.2,2578.6,3.87797]
[1723812443340,2.436,2578.7,2578.0,3.8789]
[1723812443561,2.436,2578.7,2577.8,3.87915]
[1723812443701,3.87838,2578.4,2577.8,3.87915]
[1723812444109,3.87838,2578.4,2577.6,3.87952]
[1723812444110,3.87838,2578.4,2577.6,3.87948]
[1723812444345,3.87862,2578.3,2577.6,7.75896]
[1723812444573,0.7757,2578.3,2577.2,3.8801]
[1723812444713,2.436,2578.2,2577.3,0.07758606]
[1723812444911,2.436,2578.2,2577.7,3.87932]
[1723812445137,6.3143,2578.5,2577.9,3.87903]
[1723812445346,3.87861,2578.3,2577.6,3.87948]
[1723812445500,3.87869,2578.2,2577.6,3.87946]
[1723812445701,2.436,2578.5,2577.9,3.87912]
[1723812445933,6.31422,2578.5,2577.9,4.266952]
[1723812446138,6.31422,2578.5,2577.7,7.75867]
[1723812446139,3.87839,2578.4,2577.7,7.75867]
[1723812446303,2.436,2578.5,2577.9,3.87909]
[1723812446508,3.87855,2578.3,2577.7,3.87934]
[1723812446723,3.455236,2578.5,2577.7,3.8793]
[1723812446724,7.757,2578.4,2577.7,3.8793]
[1723812447127,7.75699,2578.4,2577.8,3.87927]
[1723812447322,3.87854,2578.3,2577.6,6.87946]
[1723812447526,3.87837,2578.4,2577.3,3.87994]
[1723812447725,3.87913,2577.9,2577.3,3.87994]
[1723812447909,3.87913,2577.9,2577.3,3.87993]
[1723812448114,7.75837,2577.9,2577.3,3.87993]
[1723812448398,3.87944,2577.7,2576.6,2.4052]
[1723812448604,3.87944,2577.7,2577.1,3.8803]
[1723812449265,3.87944,2577.7,2576.9,3.8805]
[1723812449459,2.436,2578.0,2576.9,3.88057]
[1723812449785,2.436,2578.0,2577.6,3.87951]
[1723812449983,2.436,2578.0,2577.4,3.87979]
[1723812450130,6.31507,2578.0,2577.4,0.387979]
[1723812450336,3.87927,2577.8,2577.2,7.76017]
[1723812450599,3.87927,2577.8,2577.3,6.87999]
[1723812450881,3.87952,2577.7,2577.0,3.88034]
[1723812451183,3.87966,2577.6,2576.8,3.88074]
[1723812451400,3.88026,2577.2,2576.6,3.88099]
[1723812451693,7.7599,2577.4,2576.7,3.88088]
[1723812451991,3.88005,2577.3,2576.7,3.88088]
[1723812452282,3.88018,2577.2,2576.6,4.269089]
[1723812452700,3.88058,2577.0,2576.4,6.88128]
[1723812452841,2.3642,2576.9,2576.2,3.8816]
[1723812453041,2.3642,2576.9,2576.0,3.88195]
[1723812453042,3.88088,2576.8,2576.0,3.88195]
[1723812453369,3.88088,2576.8,2575.7,2.3825]
[1723812453370,3.88019,2577.2,2576.7,3.88093]
[1723812453578,3.87932,2577.8,2576.5,3.8812]
[1723812453579,2.3642,2577.6,2576.5,2.3825]
[1723812453765,2.3642,2577.6,2577.1,3.8803]
[1723812453965,2.3642,2577.6,2576.8,3.88072]
[1723812454137,2.3642,2577.6,2576.6,4.26914]
[1723812454138,2.3642,2577.6,2576.6,4.81932689]
[1723812454351,6.24321,2578.0,2576.8,3.88065]
[1723812454675,6.24321,2578.0,2576.9,3.0]
[1723812454676,3.87935,2577.8,2576.9,3.0]
[1723812454886,0.624321,2577.9,2576.9,3.0]
[1723812455093,7.7597,2577.5,2576.8,3.88065]
[1723812455394,3.87983,2577.5,2576.9,3.0]
[1723812455749,3.87992,2577.4,2576.9,3.0]
[1723812456283,3.87983,2577.5,2577.0,3.88046]
[1723812456597,3.87983,2577.5,2576.9,3.0]
[1723812456598,2.3642,2577.8,2576.9,4.076134]
[1723812456823,3.87913,2577.9,2577.1,3.88023]
[1723812457028,3.87913,2577.9,2577.2,3.0]
[1723812457029,3.87936,2577.8,2577.2,3.0]
[1723812457183,3.87936,2577.8,2577.2,6.88017]
[1723812457381,3.87913,2577.9,2577.3,3.88002]
[1723812457890,7.75835,2577.9,2577.3,3.88002]
[1723812458200,3.87913,2577.9,2577.3,3.88002]
[1723812458401,3.87948,2577.7,2577.2,3.0]
[1723812459015,3.87948,2577.7,2577.0,3.0]
[1723812459186,3.8797,2577.6,2577.1,0.688054]
[1723812459377,6.19511,2577.5,2576.7,7.196952]
[1723812459579,3.88036,2577.1,2576.5,3.88116]
[1723812459776,3.88036,2577.1,2576.5,3.88112]
[1723812460315,2.3153,2577.5,2576.3,3.88141]
[1723812460316,3.88067,2576.9,2576.3,3.88141]
[1723812460537,7.76141,2576.9,2576.4,0.388145]
[1723812460721,3.88067,2576.9,2576.1,6.26894]
[1723812461028,3.88067,2576.9,2576.3,3.88144]
[1723812461276,3.88091,2576.8,2576.1,7.76349]
[1723812461376,6.33897,2576.9,2576.1,3.88174]
[1723812461377,3.88095,2576.7,2576.1,3.88174]
[1723812461575,2.4583,2576.9,2575.8,3.88226]
[1723812461576,3.88149,2576.4,2575.8,3.88226]
[1723812462019,3.88101,2576.7,2575.9,3.88209]
[1723812462339,3.88101,2576.7,2576.1,3.88174]
[1723812462751,3.88101,2576.7,2575.9,3.88201]
[1723812462752,3.88112,2576.6,2575.9,3.88201]
[1723812462932,3.88101,2576.7,2575.9,0.776436]
[1723812463250,6.339,2576.9,2575.9,3.8821]
[1723812463394,6.339,2576.9,2575.5,1.018251]
[1723812463395,2.4583,2576.9,2576.5,3.8812]
[1723812463723,5.414,2577.5,2576.5,3.8812]
[1723812463724,2.368,2577.2,2576.5,3.88111]
[1723812463936,0.2368,2577.1,2576.0,2.9677]
[1723812464118,0.2368,2577.1,2576.4,3.88136]
[1723812464119,3.88058,2577.0,2576.4,3.88136]
[1723812464350,3.88078,2576.8,2576.2,3.88167]
[1723812464549,3.88078,2576.8,2576.3,3.0]
[1723812464964,7.76167,2576.8,2576.3,3.0]
[1723812465172,3.88078,2576.8,2576.3,3.0]
[1723812465580,3.88139,2576.4,2575.8,3.88218]
[1723812465933,3.88155,2576.3,2575.8,3.88218]
[1723812466153,3.8817,2576.2,2575.6,3.88247]
[1723812466435,2.3196,2576.1,2575.4,3.88279]
[1723812466686,0.388139,2576.4,2575.5,0.388279]
[1723812466687,6.589179,2576.4,2575.5,0.388279]
[1723812466990,6.20104,2576.4,2575.8,3.88228]
[1723812467191,2.3196,2576.4,2575.9,3.88211]
[1723812467351,7.76234,2576.6,2575.9,3.88211]
[1723812467352,3.88117,2576.6,2575.9,0.388228]
[1723812467682,3.88117,2576.6,2575.5,2.4736]
[1723812467683,2.3809,2576.8,2576.0,0.4270508]
[1723812467838,2.3809,2576.8,2575.5,2.4736]
[1723812467839,2.3809,2576.8,2576.2,3.88159]
[1723812468058,3.88063,2576.9,2576.3,0.388159]
[1723812468263,3.88134,2576.5,2575.6,3.0]
[1723812468509,2.3817,2576.6,2576.0,3.88194]
[1723812468685,2.4137,2576.9,2576.4,3.88137]
[1723812468884,3.88083,2576.8,2576.5,0.776288]
[1723812469221,6.29441,2576.9,2576.2,3.88159]
[1723812469362,6.29441,2576.9,2576.3,3.88152]
[1723812469666,6.29441,2576.9,2576.2,0.388175]
[1723812469667,2.4137,2576.9,2576.5,3.88112]
[1723812469867,6.25037,2577.2,2576.6,3.88107]
[1723812470091,2.3701,2577.2,2576.7,3.88081]
[1723812470292,7.75961,2577.5,2576.9,3.88053]
[1723812470505,3.87979,2577.5,2576.9,3.88053]
[1723812470800,3.87979,2577.5,2576.7,7.76169]
[1723812471000,3.87979,2577.5,2576.7,4.656979]
[1723812471409,3.88002,2577.3,2576.7,4.656979]
[1723812471715,3.8802,2577.2,2576.7,0.776169]
[1723812471920,3.8806,2577.0,2576.3,7.76287]
[1723812472068,3.8807,2576.9,2576.2,4.495452]
[1723812472266,3.8807,2576.9,2576.3,3.88151]
[1723812473033,3.88044,2577.1,2576.3,4.9448042]
[1723812473309,3.88071,2576.9,2576.3,4.9448042]
[1723812473522,3.88079,2576.8,2576.3,3.88151]
[1723812473703,3.88048,2577.0,2576.4,3.88136]
[1723812474023,6.17326,2577.4,2576.7,3.88089]
[1723812474165,3.88002,2577.3,2576.8,0.388089]
[1723812474371,3.88002,2577.3,2576.7,3.88089]
[1723812474625,6.17326,2577.4,2576.8,3.88076]
[1723812474768,3.87965,2577.6,2576.9,3.88048]
[1723812474970,3.87965,2577.6,2576.4,2.3812]
[1723812474971,3.88008,2577.3,2576.6,3.88094]
[1723812475205,1.01035,2577.6,2576.6,3.88094]
[1723812475519,6.33659,2577.2,2576.4,3.88128]
[1723812475736,0.12822036,2577.1,2576.5,3.88122]
[1723812475893,6.33659,2577.2,2576.5,3.88122]
[1723812476226,3.88048,2577.0,2576.2,3.88157]
[1723812476370,3.6038331,2577.5,2576.6,3.88105]
[1723812476570,0.12820927,2577.4,2576.8,3.88066]
[1723812476772,0.12820927,2577.4,2576.3,2.2836]
[1723812476773,3.88036,2577.1,2576.3,2.2836]
[1723812477019,3.88036,2577.1,2576.5,3.88114]
[1723812477230,4.62907472,2577.0,2576.3,3.88141]
[1723812477376,0.620346,2577.0,2576.4,3.88136]
[1723812477580,3.88036,2577.1,2576.4,3.88136]
[1723812477774,2.3231,2577.2,2576.4,3.88136]
[1723812478020,4.0085744,2577.1,2576.4,7.7626]
[1723812478219,3.88072,2576.9,2576.2,3.8816]
[1723812478480,3.88072,2576.9,2575.9,3.0]
[1723812478668,3.88072,2576.9,2575.8,0.47157231]
[1723812478669,0.12823822,2576.8,2576.3,3.88149]
[1723812478872,0.776129,2576.8,2576.3,3.88149]
[1723812479119,0.776129,2576.8,2576.4,3.88138]
[1723812479283,1.02117844,2577.1,2576.4,3.88138]
[1723812479487,0.12822997,2577.0,2576.4,3.88138]
[1723812479820,1.02117844,2577.1,2576.5,3.88113]
[1723812479978,6.20335,2577.2,2576.4,3.88138]
[1723812479979,0.85068297,2577.0,2576.4,3.88138]
[1723812480179,3.88116,2576.6,2576.0,3.8819]
[1723812480424,0.5163702,2576.5,2575.6,3.8825]
[1723812480645,3.88161,2576.3,2575.6,3.8825]
[1723812480855,3.88161,2576.3,2575.6,7.76498]
[1723812480856,0.1282542,2576.2,2575.6,7.76498]
[1723812481165,0.388116,2576.5,2575.9,3.88212]
[1723812481452,3.8817,2576.2,2575.5,3.8826]
[1723812481590,3.88197,2576.1,2575.5,3.8826]
[1723812481793,3.88197,2576.1,2575.3,3.88303]
[1723812481794,3.88206,2576.0,2575.3,7.76596]
[1723812481994,6.37256,2576.0,2575.3,3.88293]
[1723812482400,10.25467,2576.0,2575.3,3.88293]
[1723812482597,10.25467,2576.0,2575.6,3.88256]
[1723812482598,2.4905,2576.0,2575.6,3.88256]
[1723812482941,3.88223,2575.9,2575.2,3.8831]
[1723812483254,3.88223,2575.9,2575.0,7.76679]
[1723812483255,4.13128,2575.9,2575.0,7.76679]
[1723812483559,4.13128,2575.9,2575.2,3.88309]
[1723812483834,4.13128,2575.9,2575.1,3.88325]